Workbook

Sheet Index
B1: ='Input | General'!$B$1 -> Essential Energy 2024-29 Final Decision - Capital expenditure sharing scheme model
B2: Index
C4: Model index
C6: Sheet Name | D6: Sheet Description
C7: Input | General | D7: Inputs NSP name, regulatory years for the prior and forecast regulatory control period etc.
C8: Input | Inflation and Disc Rate | D8: Inputs the inflation and discount rate
C9: Input | Reported Capex | D9: Inputs the reported capital expenditure from the prior regulatory control period as well as the AER's forecast etc.
C10: Calc | CESS Revenue Increments | D10: Calculates the CESS payments from the prior regulatory control period
C11: Output | Models | D11: Outputs the CESS revenue increments needed as a post tax revenue model input
C13: End

Sheet Input | General
B1: =$D$6&" "&$D$8&" "&D7&" - "&"Capital expenditure sharing scheme model" -> Essential Energy 2024-29 Final Decision - Capital expenditure sharing scheme model | G1: Key: | H1: Input | I1: Internal Link
B2: Input | General
B4: Input | General
C6: NSP Name | D6: Essential Energy
C7: Determination stage | D7: Final Decision
C8: Determination years | D8: 2024-29
C9: Base regulatory year | D9: 2024-25
C11: Regulatory control period details
D12: Year 1 | E12: Year 2 | F12: Year 3 | G12: Year 4 | H12: Year 5
C13: Regulatory control period CESS applied in (regulatory years) | D13: =IF(LEN(E13)>4,CONCATENATE(LEFT(E13,4)-1&"–"&IF(RIGHT(E13,2)="00","99",IF(RIGHT(E13,2)-1<10,"0","")&RIGHT(E13,2)-1)),E13-1) -> 2019–20 | E13: 2020–21 | F13: 2021–22 | G13: =IF(LEN(H13)>4,CONCATENATE(LEFT(H13,4)-1&"–"&IF(RIGHT(H13,2)="00","99",IF(RIGHT(H13,2)-1<10,"0","")&RIGHT(H13,2)-1)),H13-1) -> 2022–23 | H13: =IF(LEN(D9)>4,CONCATENATE(LEFT(D9,4)-1&"–"&IF(RIGHT(D9,2)="00","99",IF(RIGHT(D9,2)-1<10,"0","")&RIGHT(D9,2)-1)),D9-1) -> 2023–24
C14: CESS to apply to this year's expenditure (Yes/No) | D14: Yes | E14: Yes | F14: Yes | G14: Yes | H14: Yes
C15: Actual or estimate year | D15: Actual | E15: Actual | F15: Actual | G15: Actual | H15: Estimate
D17: Year 1 | E17: Year 2 | F17: Year 3 | G17: Year 4 | H17: Year 5
C18: Regulatory control period CESS revenue increment applied in (regulatory years) | D18: =D9 -> 2024-25 | E18: =IF(LEN(D18)>4,CONCATENATE(LEFT(D18,4)+1&"–"&IF(RIGHT(D18,2)+1>9,"","0")&RIGHT(D18,2)+1),D18+1) -> 2025–26 | F18: =IF(LEN(E18)>4,CONCATENATE(LEFT(E18,4)+1&"–"&IF(RIGHT(E18,2)+1>9,"","0")&RIGHT(E18,2)+1),E18+1) -> 2026–27 | G18: 2027–28 | H18: 2028–29
B21: End

Sheet Input | Inflation and Disc Rate
B1: ='Input | General'!$B$1 -> Essential Energy 2024-29 Final Decision - Capital expenditure sharing scheme model | H1: Key: | I1: Input | J1: Internal Link | K1: AER Final Decision
C2: Input | Inflation and Discount rate
C4: Input | Inflation
D6: Source | E6: Unit
F7: =IF(LEN(G7)>4,CONCATENATE(LEFT(G7,4)-1&"–"&IF(RIGHT(G7,2)="00","99",IF(RIGHT(G7,2)-1<10,"0","")&RIGHT(G7,2)-1)),G7-1) -> 2018–19 | G7: ='Input | General'!D13 -> 2019–20 | H7: ='Input | General'!E13 -> 2020–21 | I7: ='Input | General'!F13 -> 2021–22 | J7: ='Input | General'!G13 -> 2022–23 | K7: ='Input | General'!H13 -> 2023–24 | L7: ='Input | General'!D18 -> 2024-25 | M7: ='Input | General'!E18 -> 2025–26 | N7: ='Input | General'!F18 -> 2026–27 | O7: ='Input | General'!G18 -> 2027–28 | P7: ='Input | General'!H18 -> 2028–29
C8: Actual CPI Inflation Rate | D8: DNSP | E8: Per cent | G8: 0.01840490798 | H8: 0.008605851979 | I8: 0.03498293515 | J8: 0.07831821929 | K8: 0.041
C9: Forecast CPI Inflation Rate | D9: DNSP | E9: Per cent | L9: 0.02799781128 | M9: =L9 -> 0.02799781128 | N9: 0.02799781128 | O9: 0.02799781128 | P9: 0.02799781128
C10: ="CPI Index (base year "&F7&")" -> CPI Index (base year 2018–19) | D10: DNSP | E10: Index | F10: 1 | G10: =IF(G7<>"",(F10*(1+G8)),"") -> 1.018404908 | H10: =IF(H7<>"",(G10*(1+H8)),"") -> 1.02716915 | I10: =IF(I7<>"",(H10*(1+I8)),"") -> 1.063102542 | J10: =IF(J7<>"",(I10*(1+J8)),"") -> 1.14636284 | K10: =IF(K7<>"",(J10*(1+K8)),"") -> 1.193363716 | L10: =IF(L7<>"",(K10*(1+L9)),"") -> 1.226775288 | M10: 1.261122311 | N10: 1.296430976 | O10: 1.332728205 | P10: 1.370041678
C13: Actual CPI Inflation Rate | D13: AER | E13: Per cent | G13: 0.01840490798 | H13: 0.008605851979 | I13: 0.03498293515 | J13: 0.07831821929 | K13: 0.04051987768
C14: Forecast CPI Inflation Rate | D14: AER | E14: Per cent | L14: 0.02659759351 | M14: =L14 -> 0.02659759351 | N14: 0.02659759351 | O14: 0.02659759351 | P14: 0.02659759351
C15: ="CPI Index (base year "&F7&")" -> CPI Index (base year 2018–19) | D15: AER | E15: Index | F15: 1 | G15: =IF(G7<>"",(F15*(1+G13)),"") -> 1.018404908 | H15: =IF(H7<>"",(G15*(1+H13)),"") -> 1.02716915 | I15: =IF(I7<>"",(H15*(1+I13)),"") -> 1.063102542 | J15: =IF(J7<>"",(I15*(1+J13)),"") -> 1.14636284 | K15: =IF(K7<>"",(J15*(1+K13)),"") -> 1.192813322 | L15: =IF(L7<>"",(K15*(1+L14)),"") -> 1.224539286 | M15: 1.257109084 | N15: 1.29054516 | O15: 1.324870556 | P15: 1.360108924
C17: Input | Discount rate
D19: Source | E19: Unit | G19: =G7 -> 2019–20 | H19: =H7 -> 2020–21 | I19: 2021–22 | J19: 2022–23 | K19: 2023–24 | L19: 2024-25 | M19: 2025–26 | N19: 2026–27 | O19: 2027–28 | P19: 2028–29
C20: Real Vanilla WACC | D20: AER | E20: Per cent | G20: 0.03252989747 | H20: 0.03052789723 | I20: 0.02819984782 | J20: 0.02619918325 | K20: 0.02598725568
C21: Forecast Real Vanilla WACC | D21: AER | E21: Per cent | L21: 0.03174439174 | M21: 0.03221690278 | N21: 0.032944718 | O21: 0.03369882782 | P21: 0.03458409822
C22: Nominal Vanilla WACC (fixed, real, time varying) | D22: Calculated | E22: Per cent | G22: =IF(AND(G13<>"",G20<>""),((1+G20)*(1+G13)-1),"") -> 0.05153351522 | H22: =IF(AND(H13<>"",H20<>""),((1+H20)*(1+H13)-1),"") -> 0.03939646778 | I22: =IF(AND(I13<>"",I20<>""),((1+I20)*(1+I13)-1),"") -> 0.06416929642 | J22: =IF(AND(J13<>"",J20<>""),((1+J20)*(1+J13)-1),"") -> 0.1065692759 | K22: =IF(AND(K13<>"",K20<>""),((1+K20)*(1+K13)-1),"") -> 0.06756013378 | L22: =IF(AND(L14<>"",L21<>""),((1+L21)*(1+L14)-1),"") -> 0.05918630968 | M22: 0.05967138837 | N22: 0.06041856173 | O22: 0.06119272905 | P22: 0.06210154551
B24: End

Sheet Input | Reported Capex
B1: ='Input | General'!$B$1 -> Essential Energy 2024-29 Final Decision - Capital expenditure sharing scheme model | I1: Key: | J1: Input | K1: Internal Link | L1: AER Final Decision
B2: Input | Capex
B4: Input | Capex Allowance
D6: Source | E6: Unit | F6: Basis | H6: =IF('Input | General'!D14="Yes",'Input | General'!D13,"n/a") -> 2019–20 | I6: =IF('Input | General'!E14="Yes",'Input | General'!E13,"n/a") -> 2020–21 | J6: =IF('Input | General'!F14="Yes",'Input | General'!F13,"n/a") -> 2021–22 | K6: =IF('Input | General'!G14="Yes",'Input | General'!G13,"n/a") -> 2022–23 | L6: =IF('Input | General'!H14="Yes",'Input | General'!H13,"n/a") -> 2023–24
C8: Total capex allowance | D8: AER | E8: $millions | F8: ='Input | Inflation and Disc Rate'!$F$7 -> 2018–19 | H8: 630.2469228 | I8: 509.9629839 | J8: 524.2058464 | K8: 493.3356854 | L8: 477.4414147
C9: Customer Contributions | D9: AER | E9: $millions | F9: ='Input | Inflation and Disc Rate'!$F$7 -> 2018–19 | H9: 89.70458525 | I9: 89.49037746 | J9: 89.37126539 | K9: 89.30832818 | L9: 89.29356488
C10: Asset Disposals | D10: AER | E10: $millions | F10: ='Input | Inflation and Disc Rate'!$F$7 -> 2018–19 | H10: 5.145325736 | I10: 5.30574162 | J10: 6.279217726 | K10: 8.021665821 | L10: 6.82432449
C12: Total capex allowance applicable to CESS | D12: Calculated | E12: $millions | F12: ='Input | Inflation and Disc Rate'!$F$7 -> 2018–19 | H12: =IF(H6="", "", H8-H9-H10) -> 535.3970118 | I12: =IF(I6="", "", I8-I9-I10) -> 415.1668648 | J12: 428.5553633 | K12: 396.0056914 | L12: 381.3235253
B14: Input | Actual / Estimate Capex
D16: Source | E16: Unit | F16: Basis | H16: =H6 -> 2019–20 | I16: =I6 -> 2020–21 | J16: 2021–22 | K16: 2022–23 | L16: 2023–24
C18: Total capex | D18: AER | E18: $millions | F18: nominal | H18: 550.8091263 | I18: 501.0999857 | J18: 574.7916475 | K18: 707.5777012 | L18: 749.0423784
C19: Customer Contributions | D19: AER | E19: $millions | F19: nominal | H19: 79.5017799 | I19: 92.853394 | J19: 141.794184 | K19: 205.6710172 | L19: 201.9192195
C20: Asset Disposals | D20: AER | E20: $millions | F20: nominal | H20: 2.954677 | I20: 3.727251 | J20: 2.394703987 | K20: 4.85390675 | L20: 3.648000573
C21: Other excludable capex | D21: AER | E21: $millions | F21: nominal | H21: 0 | I21: 0 | J21: 0 | K21: 0 | L21: 0
C23: Total actual capex applicable to CESS | D23: Calculated | E23: $millions | F23: nominal | H23: =IF(H16="", "", H18-H19-H20-H21) -> 468.3526694 | I23: =IF(I16="", "", I18-I19-I20-I21) -> 404.5193407 | J23: 430.6027595 | K23: 497.0527773 | L23: 543.4751583
B25: Input | Capex Deferred to following regulatory period
H27: ='Input | General'!D18 -> 2024-25 | I27: ='Input | General'!E18 -> 2025–26 | J27: ='Input | General'!F18 -> 2026–27 | K27: ='Input | General'!G18 -> 2027–28 | L27: ='Input | General'!H18 -> 2028–29
C29: Capex deferred and re-proposed | D29: DNSP | E29: $millions | F29: nominal | H29: 0 | I29: 20.84464322 | J29: 0 | K29: 0 | L29: 0
C30: Capex deferred and re-proposed | D30: Calculated | E30: $millions | F30: ='Input | Inflation and Disc Rate'!$F$7 -> 2018–19 | H30: =IF(H29<>"",H29/('Input | Inflation and Disc Rate'!K10*(1+'Input | Inflation and Disc Rate'!L9)^0.5),"") -> 0 | I30: =IF(I29<>"",I29/('Input | Inflation and Disc Rate'!L10*(1+'Input | Inflation and Disc Rate'!M9)^0.5),"") -> 16.75843086 | J30: =IF(J29<>"",J29/('Input | Inflation and Disc Rate'!M10*(1+'Input | Inflation and Disc Rate'!N9)^0.5),"") -> 0 | K30: =IF(K29<>"",K29/('Input | Inflation and Disc Rate'!N10*(1+'Input | Inflation and Disc Rate'!O9)^0.5),"") -> 0 | L30: =IF(L29<>"",L29/('Input | Inflation and Disc Rate'!O10*(1+'Input | Inflation and Disc Rate'!P9)^0.5),"") -> 0
C31: Capex deferred and re-proposed | D31: AER | E31: $millions | F31: nominal | H31: =IF(H29<>"",H30*'Input | Inflation and Disc Rate'!K15*(1+'Input | Inflation and Disc Rate'!L14)^0.5,"") -> 0 | I31: =IF(I29<>"",I30*'Input | Inflation and Disc Rate'!L15*(1+'Input | Inflation and Disc Rate'!M14)^0.5,"") -> 20.79247537 | J31: =IF(J29<>"",J30*'Input | Inflation and Disc Rate'!M15*(1+'Input | Inflation and Disc Rate'!N14)^0.5,"") -> 0 | K31: =IF(K29<>"",K30*'Input | Inflation and Disc Rate'!N15*(1+'Input | Inflation and Disc Rate'!O14)^0.5,"") -> 0 | L31: =IF(L29<>"",L30*'Input | Inflation and Disc Rate'!O15*(1+'Input | Inflation and Disc Rate'!P14)^0.5,"") -> 0
B33: End

Sheet Calc | CESS Revenue Increments
B1: ='Input | General'!$B$1 -> Essential Energy 2024-29 Final Decision - Capital expenditure sharing scheme model | K1: Key: | L1: Input | M1: Internal Link
B2: Input | CESS Payments
B4: Calc | NPV of CESS payments
C6: Regulatory period 1
C7: Year | D7: =IF('Input | General'!D14="Yes",'Input | General'!D13,"n/a") -> 2019–20 | E7: =IF('Input | General'!E14="Yes",'Input | General'!E13,"n/a") -> 2020–21 | F7: =IF('Input | General'!F14="Yes",'Input | General'!F13,"n/a") -> 2021–22 | G7: =IF('Input | General'!G14="Yes",'Input | General'!G13,"n/a") -> 2022–23 | H7: =IF('Input | General'!H14="Yes",'Input | General'!H13,"n/a") -> 2023–24
C8: Discount rate (Real WACC) | D8: ='Input | Inflation and Disc Rate'!G20 -> 0.03252989747 | E8: ='Input | Inflation and Disc Rate'!H20 -> 0.03052789723 | F8: ='Input | Inflation and Disc Rate'!I20 -> 0.02819984782 | G8: ='Input | Inflation and Disc Rate'!J20 -> 0.02619918325 | H8: ='Input | Inflation and Disc Rate'!K20 -> 0.02598725568
C9: Discount rate (Nominal, fixed real WACC) | D9: ='Input | Inflation and Disc Rate'!G22 -> 0.05153351522 | E9: ='Input | Inflation and Disc Rate'!H22 -> 0.03939646778 | F9: ='Input | Inflation and Disc Rate'!I22 -> 0.06416929642 | G9: ='Input | Inflation and Disc Rate'!J22 -> 0.1065692759 | H9: ='Input | Inflation and Disc Rate'!K22 -> 0.06756013378
C10: Capex allowance | D10: ='Input | Reported Capex'!H$12*'Input | Inflation and Disc Rate'!G$15*(1+'Input | Inflation and Disc Rate'!G$20)^0.5 -> 554.0484503 | E10: ='Input | Reported Capex'!I$12*'Input | Inflation and Disc Rate'!H$15*(1+'Input | Inflation and Disc Rate'!H$20)^0.5 -> 432.9069201 | F10: ='Input | Reported Capex'!J$12*'Input | Inflation and Disc Rate'!I$15*(1+'Input | Inflation and Disc Rate'!I$20)^0.5 -> 461.9775365 | G10: ='Input | Reported Capex'!K$12*'Input | Inflation and Disc Rate'!J$15*(1+'Input | Inflation and Disc Rate'!J$20)^0.5 -> 459.8745327 | H10: ='Input | Reported Capex'!L$12*'Input | Inflation and Disc Rate'!K$15*(1+'Input | Inflation and Disc Rate'!K$20)^0.5 -> 460.7199976
C11: Actual capex | D11: ='Input | Reported Capex'!H23*(1+D$9)^0.5 -> 480.269005 | E11: ='Input | Reported Capex'!I23*(1+E$9)^0.5 -> 412.4106853 | F11: ='Input | Reported Capex'!J23*(1+F$9)^0.5 -> 444.2036992 | G11: ='Input | Reported Capex'!K23*(1+G$9)^0.5 -> 522.8676933 | H11: ='Input | Reported Capex'!L23*(1+H$9)^0.5 -> 561.5337597
C12: Underspend | D12: =(D10-D11) -> 73.77944536 | E12: =(E10-E11) -> 20.49623485 | F12: =(F10-F11) -> 17.77383735 | G12: -62.99316058 | H12: -100.8137621
C13: Year 1 benefit | E13: =$D$12*$E$8 -> 2.252331326 | F13: =$D$12*$F$8*(1+'Input | Inflation and Disc Rate'!H13) -> 2.098474201 | G13: =$D$12*$G$8*(1+'Input | Inflation and Disc Rate'!H13)*(1+'Input | Inflation and Disc Rate'!I13) -> 2.017798577 | H13: =$D$12*$H$8*(1+'Input | Inflation and Disc Rate'!H13)*(1+'Input | Inflation and Disc Rate'!I13)*(1+'Input | Inflation and Disc Rate'!J13) -> 2.158228491
C14: Year 2 benefit | F14: =$E$12*F$8 -> 0.5779907037 | G14: =$E$12*G$8*(1+'Input | Inflation and Disc Rate'!I13) -> 0.5557699108 | H14: =$E$12*H$8*(1+'Input | Inflation and Disc Rate'!I13)*(1+'Input | Inflation and Disc Rate'!J13) -> 0.5944490541
C15: Year 3 benefit | G15: =$F$12*G$8 -> 0.4656600219 | H15: =$F$12*$H$8*(1+'Input | Inflation and Disc Rate'!J13) -> 0.498067913
C16: Year 4 benefit | H16: =$G$12*$H$8 -> -1.63701937
C17: Year 5 benefit
C18: Total financing benefit | D18: =SUM(D13:D17) -> 0 | E18: =SUM(E13:E17) -> 2.252331326 | F18: =SUM(F13:F17) -> 2.676464905 | G18: 3.03922851 | H18: 1.613726088
C19: Discount factor (end of year) | D19: =E19*(1+E$9) -> 1.306660962 | E19: =F19*(1+F$9) -> 1.257134311 | F19: =G19*(1+G$9) -> 1.181329244 | G19: =H19*(1+H$9) -> 1.067560134 | H19: 1
C20: NPV underspend | D20: =D12*D19 -> 96.40472105 | E20: =E12*E19 -> 25.76652007 | F20: =F12*F19 -> 20.99675385 | G20: -67.24898693 | H20: -100.8137621
C21: NPV financing benefit | D21: =D18*D19 -> 0 | E21: =E18*E19 -> 2.831482989 | F21: =F18*F19 -> 3.161786264 | G21: 3.244559195 | H21: 1.613726088
C23: Regulatory period 2
C24: Year | D24: ='Input | General'!$D$18 -> 2024-25 | E24: ='Input | General'!$E$18 -> 2025–26 | F24: ='Input | General'!$F$18 -> 2026–27 | G24: ='Input | General'!$G$18 -> 2027–28 | H24: ='Input | General'!$H$18 -> 2028–29
C25: Discount rate: | D25: ='Input | Inflation and Disc Rate'!L$22 -> 0.05918630968 | E25: ='Input | Inflation and Disc Rate'!M$22 -> 0.05967138837 | F25: ='Input | Inflation and Disc Rate'!N$22 -> 0.06041856173 | G25: ='Input | Inflation and Disc Rate'!O$22 -> 0.06119272905 | H25: ='Input | Inflation and Disc Rate'!P$22 -> 0.06210154551
C26: Increase in forecast capex in regulatory period 2 attributable to capex deferred in regulatory period 1 | D26: ='Input | Reported Capex'!H31 -> 0 | E26: ='Input | Reported Capex'!I31 -> 20.79247537 | F26: ='Input | Reported Capex'!J31 -> 0 | G26: ='Input | Reported Capex'!K31 -> 0 | H26: ='Input | Reported Capex'!L31 -> 0
C27: Discount factor (middle of year 5) | D27: =1/(1+D25)^(0.5) -> 0.9716588724 | E27: =1/((1+E25)^(0.5)*(1+D25)) -> 0.9171535198 | F27: =1/((1+F25)^(0.5)*(1+E25)*(1+D25)) -> 0.8652025134 | G27: =1/((1+G25)^(0.5)*(1+F25)*(1+E25)*(1+D25)) -> 0.8156089428 | H27: =1/((1+H25)^(0.5)*(1+G25)*(1+F25)*(1+E25)*(1+D25)) -> 0.7682486854
C28: NPV of increase in forecast capex from deferred capex | D28: =D26*D27 -> 0 | E28: =E26*E27 -> 19.06989197 | F28: 0 | G28: 0 | H28: =H26*H27 -> 0
C30: CESS calculation (post-adjustment)
C31: Total underspend (NPV) adjusted for deferrals | D31: =SUM(D20:H20)-SUM(D28:H28) -> -43.964646
C32: Relevant sharing ratio | D32: 0.3
C33: Consumer share | D33: =(1-D32)*D31 -> -30.7752522
C34: NSP share | D34: =D32*D31 -> -13.1893938
C35: Total NSP financing benefit (NPV) | D35: =SUM(D21:H21) -> 10.85155453
C36: NPV of CESS payments (post-adjustment) | D36: =D34-D35 -> -24.04094833
B38: Calc | Total CESS Payments
D40: ='Input | General'!D18 -> 2024-25 | E40: ='Input | General'!E18 -> 2025–26 | F40: ='Input | General'!F18 -> 2026–27 | G40: ='Input | General'!G18 -> 2027–28 | H40: ='Input | General'!H18 -> 2028–29
C41: Discount factor | D41: =1/(1+'Input | Inflation and Disc Rate'!L21) -> 0.9692323099 | E41: =D41/(1+'Input | Inflation and Disc Rate'!M21) -> 0.9389812425 | F41: =E41/(1+'Input | Inflation and Disc Rate'!N21) -> 0.9090333937 | G41: =F41/(1+'Input | Inflation and Disc Rate'!O21) -> 0.8793986887 | H41: =G41/(1+'Input | Inflation and Disc Rate'!P21) -> 0.8500021315
C42: =CONCATENATE("CESS Payment Per Year ($", 'Output | Models'!$F$8," million)") -> CESS Payment Per Year ($2023–24 million) | D42: =D36/(SUM(D41:H41)) -> -5.287620588 | E42: =D42 -> -5.287620588 | F42: =E42 -> -5.287620588 | G42: -5.287620588 | H42: -5.287620588
C44: =CONCATENATE("Total CESS Payment ($", 'Output | Models'!$F$8," million)") -> Total CESS Payment ($2023–24 million) | D44: =SUM(D42:H42) -> -26.43810294
B47: End

Sheet Output | Models
B1: ='Input | General'!$B$1 -> Essential Energy 2024-29 Final Decision - Capital expenditure sharing scheme model | K1: Key: | L1: Input | M1: Internal Link
B2: Output | Models
B4: Inputs for Post Tax Revenue Model | J4: Note. The dollar base should be consistent with the post tax revenue model
C6: Revenue Adjustments | D6: Source | E6: Unit | F6: Basis | J6: ='Calc | CESS Revenue Increments'!D40 -> 2024-25 | K6: ='Calc | CESS Revenue Increments'!E40 -> 2025–26 | L6: ='Calc | CESS Revenue Increments'!F40 -> 2026–27 | M6: ='Calc | CESS Revenue Increments'!G40 -> 2027–28 | N6: ='Calc | CESS Revenue Increments'!H40 -> 2028–29 | O6: Total
C8: CESS increments as per NER 6A.5.4(a)(5) | D8: Calc | CESS Revenue Increments | E8: $millions | F8: =IF(LEN(J6)>4,CONCATENATE(LEFT(J6,4)-1&"–"&IF(RIGHT(J6,2)="00","99",IF(RIGHT(J6,2)-1<10,"0","")&RIGHT(J6,2)-1)),J6-1) -> 2023–24 | J8: ='Calc | CESS Revenue Increments'!D42 -> -5.287620588 | K8: ='Calc | CESS Revenue Increments'!E42 -> -5.287620588 | L8: ='Calc | CESS Revenue Increments'!F42 -> -5.287620588 | M8: ='Calc | CESS Revenue Increments'!G42 -> -5.287620588 | N8: ='Calc | CESS Revenue Increments'!H42 -> -5.287620588 | O8: =SUM(J8:N8) -> -26.43810294
B11: End
